bitfinex/quotes_SOLUSD_20251120
["timestamp","ask_amount","ask_price","bid_price","bid_amount"]
[1763614484793,11.65105423,144.4,144.39,5.07924854]
[1763614486887,4.03556015,144.41,144.39,5.07924854]
[1763614487088,5.69556015,144.41,144.4,5.07924854]
[1763614487508,1.66,144.41,144.4,5.07924854]
[1763614487712,5.69556015,144.41,144.4,5.07924854]
[1763614488218,12.62028835,144.41,144.4,5.07924854]
[1763614489117,13.31028835,144.41,144.4,5.07924854]
[1763614490220,9.2747282,144.41,144.4,5.07924854]
[1763614490538,13.31028835,144.41,144.4,5.07924854]
[1763614490704,12.62028835,144.41,144.4,5.07924854]
[1763614490903,13.33028835,144.41,144.4,5.07924854]
[1763614491103,30.64210886,144.41,144.4,5.08026498]
[1763614491303,29.93210886,144.41,144.4,5.08026498]
[1763614492217,28.27210886,144.41,144.4,5.08026498]
[1763614492417,29.93210886,144.41,144.4,5.08026498]
[1763614492721,30.64210886,144.41,144.4,5.08026498]
[1763614493836,34.67766901,144.41,144.35,50.7]
[1763614494007,4.03556015,144.38,144.36,5.08312521]
[1763614494206,4.03556015,144.38,144.37,5.08312521]
[1763614494720,10.9617272,144.38,144.37,5.08312521]
[1763614497037,7.63616705,144.38,144.37,5.08312521]
[1763614497209,7.63616705,144.38,144.33,50.0]
[1763614497210,10.9617272,144.38,144.34,0.7]
[1763614497531,5.69556015,144.37,144.35,5.08846272]
[1763614497707,5.69556015,144.37,144.36,5.08846272]
[1763614497909,4.03556015,144.37,144.36,5.08846272]
[1763614498112,5.69556015,144.37,144.36,5.08846272]
[1763614498828,2.58374959,144.37,144.36,5.08846272]
[1763614499018,11.1703964,144.37,144.36,5.08846272]
[1763614500631,11.8803964,144.37,144.36,5.08846272]
[1763614501810,9.29664681,144.37,144.36,5.08846272]
[1763614502037,11.8803964,144.37,144.36,5.08846272]
[1763614503430,29.19701342,144.37,144.36,5.09935544]
[1763614503818,29.19701342,144.37,144.32,0.7]
[1763614504026,6.92760651,144.35,144.33,5.09987329]
[1763614504225,8.58760651,144.35,144.34,5.09987329]
[1763614504534,11.1713561,144.35,144.34,5.09987329]
[1763614504718,63.83840492,144.35,144.29,50.0]
[1763614504922,2.58374959,144.32,144.29,50.7]
[1763614505135,25.90662278,144.35,144.31,50.0]
[1763614505321,2.58374959,144.34,144.31,50.0]
[1763614505639,2.58374959,144.34,144.32,0.7]
[1763614506008,9.51197487,144.34,144.32,0.7]
[1763614508618,9.51131174,144.36,144.32,3.28374959]
[1763614508821,9.51011846,144.38,144.33,52.58374959]
[1763614509135,6.92636887,144.38,144.35,50.0]
[1763614509313,6.92636887,144.38,144.35,52.58374959]
[1763614509512,6.92636887,144.38,144.36,0.7]
[1763614511018,9.50963331,144.39,144.36,0.7]
[1763614511520,11.169109,144.4,144.37,50.0]
[1763614511723,8.58535941,144.4,144.37,50.0]
[1763614511937,8.58535941,144.4,144.38,0.7]
[1763614513031,1.66,144.4,144.38,0.7]
[1763614513824,8.58529723,144.4,144.38,0.7]
[1763614514016,11.16904682,144.4,144.38,0.7]
[1763614514417,9.50904682,144.4,144.38,0.7]
[1763614514621,6.92529723,144.4,144.38,0.7]
[1763614516518,0.05387456,144.42,144.39,50.0]
[1763614516737,0.05387456,144.42,144.4,2.58374959]
[1763614516929,0.05387456,144.42,144.41,0.7]
[1763614517143,0.05387456,144.42,144.41,50.84216157]
[1763614517824,0.05387456,144.42,144.41,50.7]
[1763614523149,0.05387456,144.42,144.41,50.84216157]
[1763614524746,0.05387456,144.42,144.39,50.68]
[1763614524946,2.63762415,144.42,144.39,50.0]
[1763614525122,0.05387456,144.42,144.39,50.0]
[1763614525324,0.05387456,144.42,144.4,0.68]
[1763614526248,0.71387456,144.42,144.39,50.0]
[1763614526437,6.92520775,144.4,144.39,50.0]
[1763614526959,9.50895734,144.4,144.37,50.68]
[1763614527148,2.58374959,144.39,144.37,50.68]
[1763614527444,2.58374959,144.39,144.38,0.68]
[1763614528051,25.39822714,144.4,144.38,0.68]
[1763614528252,6.42520775,144.4,144.38,0.68]
[1763614528749,9.00895734,144.4,144.38,0.68]
[1763614532129,2.58374959,144.39,144.37,50.0]
[1763614532458,2.58374959,144.39,144.37,50.68]
[1763614534464,9.50991664,144.38,144.37,50.0]
[1763614535668,9.50991664,144.38,144.37,50.68]
[1763614536243,9.50991664,144.38,144.35,51.66]
[1763614536451,9.50991664,144.38,144.36,0.68]
[1763614537040,9.50991664,144.38,144.35,51.66]
[1763614537250,2.58374959,144.37,144.35,0.68]
[1763614537450,4.24374959,144.36,144.33,50.0]
[1763614537648,2.58374959,144.34,144.29,50.68]
[1763614537938,2.58374959,144.32,144.3,0.68]
[1763614538356,6.92616705,144.38,144.31,4.24374959]
[1763614538565,6.92616705,144.38,144.35,50.0]
[1763614538861,6.92616705,144.38,144.36,0.68]
[1763614540465,3.27374959,144.37,144.33,0.68]
[1763614540672,2.58374959,144.35,144.33,0.68]
[1763614541478,2.58374959,144.36,144.33,0.68]
[1763614542366,6.92760651,144.35,144.33,0.68]
[1763614544572,9.51102646,144.36,144.33,0.68]
[1763614544762,1.66,144.37,144.35,50.0]
[1763614545068,2.58374959,144.38,144.35,50.0]
[1763614545267,2.58374959,144.38,144.35,50.68]
[1763614545679,6.92664681,144.37,144.35,50.68]
[1763614545852,2.58374959,144.38,144.36,0.68]
[1763614546043,9.510052,144.38,144.36,0.68]
[1763614546446,18.00339735,144.4,144.37,0.68]
[1763614546447,6.92520775,144.4,144.37,0.68]
[1763614546766,9.50895734,144.4,144.37,0.68]
[1763614547147,6.92520775,144.4,144.37,0.68]
[1763614547651,9.50895734,144.4,144.37,0.68]
[1763614548269,6.92520775,144.4,144.37,50.68]
[1763614548476,6.92520775,144.4,144.38,5.76072358]
[1763614548662,6.92520775,144.4,144.39,5.08072358]
[1763614549366,0.05387456,144.42,144.39,5.76072358]
[1763614549561,0.05387456,144.42,144.41,50.0]
[1763614549776,0.05387456,144.42,144.41,55.08072358]
[1763614550079,0.05387456,144.42,144.41,55.77072358]
[1763614550960,2.03593088,144.47,144.41,67.08136294]
[1763614551160,2.03593088,144.47,144.46,50.0]
[1763614551383,2.03593088,144.47,144.46,55.08072358]
[1763614551578,2.03593088,144.47,144.46,55.77072358]
[1763614552384,2.03593088,144.47,144.46,55.7622507]
[1763614553271,2.03593088,144.47,144.46,5.0722507]
[1763614553469,2.03593088,144.47,144.46,55.7622507]
[1763614553993,2.03593088,144.47,144.46,55.0722507]
[1763614553994,8.95778316,144.47,144.46,55.0722507]
[1763614554165,8.95778316,144.47,144.46,55.7622507]
[1763614554359,2.03593088,144.47,144.46,55.7622507]
[1763614554671,2.03593088,144.47,144.46,58.48816186]
[1763614554871,2.68374959,144.55,144.5,50.0]
[1763614555083,2.58374959,144.54,144.51,5.0722507]
[1763614555398,3.28374959,144.54,144.5,50.0]
[1763614555572,0.7,144.53,144.51,5.05679547]
[1763614555758,0.7,144.53,144.5,50.0]
[1763614555964,0.7,144.53,144.51,5.05713356]
[1763614556194,0.1,144.55,144.53,50.14216157]
[1763614556683,0.1,144.55,144.54,5.04845147]
[1763614557016,9.60180438,144.55,144.53,50.0]
[1763614557197,7.01805479,144.55,144.53,50.0]
[1763614557491,0.1,144.55,144.53,50.0]
[1763614558374,0.8,144.55,144.53,50.0]
[1763614558695,0.1,144.55,144.53,50.0]
[1763614558899,10.30182819,144.55,144.53,50.0]
[1763614559076,7.7180786,144.55,144.53,50.0]
[1763614559395,10.30182819,144.55,144.53,50.0]
[1763614559597,7.0180786,144.55,144.53,50.0]
[1763614559959,7.0180786,144.55,144.54,0.05]
[1763614559960,0.1,144.55,144.54,0.05]
[1763614560163,0.1,144.55,144.54,0.19216157]
[1763614560483,0.1,144.55,144.54,5.22849765]
[1763614560676,0.1,144.55,144.54,5.03633608]
[1763614561595,11.74409918,144.55,144.53,50.0]
[1763614561964,4.72607774,144.54,144.51,50.0]
[1763614562308,0.1,144.55,144.52,5.09108744]
[1763614562517,0.05,144.55,144.54,117.84098317]
[1763614562806,7.61351906,144.65,144.6,50.0]
[1763614562979,11.6395968,144.65,144.62,50.0]
[1763614563397,10.93884409,144.66,144.62,50.0]
[1763614563616,11.63884409,144.66,144.62,50.0]
[1763614564125,10.93884409,144.66,144.62,50.0]
[1763614564332,11.63884409,144.66,144.62,50.0]
[1763614564533,11.63884409,144.66,144.62,54.02607774]
[1763614564899,0.7,144.65,144.62,50.0]
[1763614565105,4.72607774,144.65,144.62,50.0]
[1763614565300,4.02607774,144.69,144.62,50.0]
[1763614565301,1.93561276,144.73,144.7,50.0]
[1763614565829,2.63561276,144.73,144.7,50.0]
[1763614566130,1.93561276,144.73,144.7,54.02607774]
[1763614566345,1.93561276,144.73,144.72,63.957067]
[1763614566539,1.93561276,144.73,144.72,82.40098926]
[1763614566699,1.93561276,144.73,144.72,65.617067]
[1763614567008,1.93561276,144.73,144.72,50.0]
[1763614567211,9.54503029,144.73,144.72,50.0]
[1763614567400,2.63561276,144.73,144.72,50.0]
[1763614567721,20.1946337,144.73,144.7,50.0]
[1763614567919,10.64960341,144.71,144.68,50.0]
[1763614568126,6.91037246,144.71,144.68,50.0]
[1763614568422,18.259582,144.72,144.7,50.0]
[1763614568722,10.64960341,144.71,144.68,50.0]
[1763614568918,10.64960341,144.7,144.68,50.0]
[1763614569092,11.34960341,144.71,144.68,50.0]
[1763614569514,0.7,144.7,144.68,50.0]
[1763614569728,11.34960341,144.7,144.66,50.0]
[1763614570228,6.91132766,144.69,144.66,50.0]
[1763614570599,11.34960341,144.68,144.66,50.0]
[1763614571211,10.64960341,144.67,144.64,51.66]
[1763614571720,11.34960341,144.68,144.64,51.66]
[1763614572223,10.64960341,144.67,144.64,51.66]
[1763614572623,18.26168631,144.68,144.64,51.66]
[1763614573739,10.64960341,144.67,144.64,50.0]
[1763614574117,10.64960341,144.65,144.6,50.0]
[1763614574439,6.91562932,144.6,144.58,50.0]
[1763614574616,17.56523273,144.6,144.58,50.0]
[1763614574816,17.26523273,144.6,144.58,50.0]
[1763614576655,0.7,144.62,144.58,50.0]
[1763614576855,13.00960341,144.62,144.58,50.0]
[1763614577218,0.7,144.61,144.58,50.0]
[1763614577420,12.30960341,144.62,144.58,50.0]
[1763614577618,13.00960341,144.62,144.58,50.0]
[1763614578025,19.92433544,144.62,144.58,50.0]
[1763614578230,10.64960341,144.61,144.58,50.0]
[1763614578535,10.64960341,144.59,144.58,50.0]
[1763614578716,0.7,144.6,144.58,50.0]
[1763614578917,11.34960341,144.6,144.58,50.0]
[1763614580447,18.12096,144.65,144.58,50.0]
[1763614580448,10.64960341,144.67,144.64,50.0]
[1763614580752,17.56193418,144.67,144.64,50.0]
[1763614581235,10.64960341,144.65,144.62,50.0]
[1763614581431,10.64960341,144.63,144.62,50.0]
[1763614581830,0.69,144.64,144.62,50.0]
[1763614582143,10.64960341,144.63,144.6,50.0]
[1763614582918,11.33960341,144.62,144.59,1.66]
[1763614583118,12.30960341,144.61,144.58,50.0]
[1763614583339,10.64960341,144.6,144.58,50.0]
[1763614583546,10.64960341,144.61,144.58,50.0]
[1763614583746,0.69,144.61,144.58,50.0]
[1763614584052,7.60319597,144.66,144.59,0.14216157]
[1763614584226,12.30960341,144.65,144.62,50.0]
[1763614584551,10.64960341,144.64,144.62,50.0]
[1763614584714,11.33960341,144.64,144.62,50.0]
[1763614585047,11.33960341,144.63,144.6,50.0]
[1763614585220,10.64960341,144.62,144.6,50.0]
[1763614585554,11.33960341,144.62,144.6,50.0]
[1763614585935,12.30960341,144.62,144.6,50.0]
[1763614586135,0.69,144.61,144.6,50.0]
[1763614587154,10.64960341,144.62,144.6,50.0]
[1763614587329,2.34,144.61,144.6,50.0]
[1763614587960,1.99999999,144.71,144.6,56.91560695]
[1763614587961,24.19131876,144.68,144.6,56.91560695]
[1763614588163,10.64960341,144.65,144.62,50.0]
[1763614588374,2.34,144.67,144.62,50.0]
[1763614588657,10.64960341,144.64,144.62,50.0]
[1763614588871,11.32960341,144.64,144.62,50.0]
[1763614589230,12.98960341,144.64,144.62,50.0]
[1763614589956,2.34,144.64,144.62,50.0]
[1763614590168,12.30960341,144.65,144.62,50.0]
[1763614590359,12.98960341,144.65,144.62,50.0]
[1763614590530,0.68,144.64,144.62,50.0]
[1763614590730,10.64960341,144.63,144.6,50.0]
[1763614590937,12.98960341,144.64,144.6,56.91556785]
[1763614591285,19.90342481,144.64,144.6,56.91556785]
[1763614592633,19.90342481,144.64,144.6,50.0]
[1763614593943,1.66,144.65,144.62,50.0]
[1763614594255,11.32960341,144.64,144.6,50.0]
[1763614594450,10.64960341,144.61,144.58,50.0]
[1763614594647,17.56506986,144.61,144.58,50.0]
[1763614594866,17.56506986,144.61,144.56,51.66]
[1763614594867,10.64960341,144.59,144.56,51.66]
[1763614595067,0.68,144.6,144.53,62.30960341]
[1763614595369,10.64960341,144.6,144.59,50.0]
[1763614595744,11.32960341,144.6,144.56,50.0]
[1763614595955,10.64960341,144.59,144.56,50.0]
[1763614596160,12.98960341,144.59,144.56,50.0]
[1763614596681,2.34,144.59,144.56,50.0]
[1763614597045,19.90571675,144.59,144.56,50.0]
[1763614597262,0.68,144.58,144.53,60.64960341]
[1763614597438,10.64960341,144.57,144.53,50.0]
[1763614597643,10.64960341,144.55,144.51,51.66]
[1763614597870,10.64960341,144.55,144.51,50.0]
[1763614598075,11.32960341,144.54,144.51,50.0]
[1763614598375,11.32960341,144.55,144.5,17.56996693]
[1763614598537,10.64960341,144.54,144.49,12.30960341]
[1763614598738,10.64960341,144.54,144.49,19.23042674]
[1763614598965,18.24822481,144.54,144.49,19.23042674]
[1763614599169,1.66,144.55,144.52,50.0]
[1763614599773,2.34,144.55,144.52,50.0]
[1763614600066,0.68,144.55,144.52,50.0]
[1763614600567,11.32960341,144.55,144.52,50.0]
[1763614600770,8.57789498,144.56,144.52,50.0]
[1763614600975,12.30960341,144.56,144.52,56.91932907]
[1763614601374,12.98960341,144.56,144.52,56.91932907]
[1763614601683,19.90726819,144.56,144.52,56.91932907]
[1763614602271,18.24726819,144.56,144.52,56.91932907]
[1763614602650,10.64960341,144.56,144.52,56.91932907]
[1763614603468,0.68,144.56,144.52,67.56893248]
[1763614603871,0.68,144.56,144.52,56.91932907]
[1763614604080,12.30960341,144.57,144.52,56.91932907]
[1763614604382,10.64960341,144.56,144.52,56.91932907]
[1763614605081,11.32960341,144.56,144.52,56.91932907]
[1763614606552,10.64960341,144.56,144.52,56.91932907]
[1763614606968,1.66,144.57,144.55,50.0]
[1763614607177,11.32960341,144.56,144.55,50.0]
[1763614607377,11.32960341,144.56,144.53,0.14216157]
[1763614607378,11.32960341,144.56,144.53,50.0]
[1763614607585,11.32960341,144.55,144.53,50.0]
[1763614608153,0.68,144.54,144.53,50.0]
[1763614608359,10.64960341,144.55,144.53,50.0]
[1763614608567,0.68,144.56,144.53,50.0]
[1763614608568,1.66,144.56,144.53,50.0]
[1763614609060,1.66,144.56,144.53,56.91854985]
[1763614609560,9.2566796,144.58,144.53,60.94416266]
[1763614609885,4.70561281,144.57,144.53,56.91854985]
[1763614610184,4.02561281,144.56,144.53,50.0]
[1763614610479,0.71,144.55,144.53,50.0]
[1763614610686,4.73561281,144.55,144.53,50.0]
[1763614611485,0.71,144.55,144.53,50.0]
[1763614617667,11.65372975,144.55,144.53,50.0]
[1763614617887,4.02561281,144.54,144.53,50.0]
[1763614618075,4.73561281,144.54,144.53,50.0]
[1763614619100,0.71,144.54,144.53,50.0]
[1763614619465,4.73561281,144.54,144.53,50.0]
[1763614620077,0.71,144.54,144.53,50.0]
[1763614622067,0.71,144.54,144.53,61.4]
[1763614622370,34.57815689,144.6,144.53,61.4]
[1763614622371,1.66,144.58,144.55,50.0]
[1763614623191,4.94568438,144.58,144.55,50.0]
[1763614623497,3.28568438,144.58,144.55,50.0]
[1763614623992,0.71,144.58,144.55,50.0]
[1763614624288,10.20227728,144.58,144.55,50.0]
[1763614624616,2.57568438,144.56,144.53,50.0]
[1763614624903,2.57568438,144.55,144.53,50.0]
[1763614625065,0.71,144.54,144.53,50.0]
[1763614625795,7.62850006,144.54,144.53,50.0]
[1763614626093,6.91790546,144.56,144.53,50.0]
[1763614626273,2.57568438,144.55,144.53,50.0]
[1763614626474,0.71,144.55,144.53,50.0]
[1763614626673,0.71,144.54,144.53,50.0]
[1763614627096,0.71,144.54,144.53,61.4]
[1763614627297,0.71,144.54,144.53,50.0]
[1763614629000,2.57568438,144.55,144.53,50.0]
[1763614629001,2.57568438,144.56,144.53,50.0]
[1763614629200,3.28568438,144.56,144.53,50.0]
[1763614629496,2.57568438,144.54,144.51,50.0]
[1763614629791,2.57568438,144.53,144.51,50.0]
[1763614630001,3.28568438,144.53,144.51,50.0]
[1763614630299,2.57568438,144.52,144.51,50.0]
[1763614630468,3.28568438,144.52,144.46,50.0]
[1763614630669,2.57568438,144.49,144.46,50.0]
[1763614631196,9.4960996,144.5,144.46,50.0]
[1763614631374,0.71,144.49,144.46,50.0]
[1763614631575,3.28568438,144.5,144.46,56.92217858]
[1763614631997,3.28568438,144.5,144.47,6.1]
[1763614632211,2.57568438,144.5,144.47,6.1]
[1763614632413,3.28568438,144.49,144.47,6.1]
[1763614632702,0.71,144.49,144.47,6.1]
[1763614632917,10.20672891,144.49,144.47,6.1]
[1763614633208,3.28568438,144.48,144.47,6.1]
[1763614633409,4.94568438,144.48,144.47,6.1]
[1763614633782,9.78882769,144.55,144.45,2.77568438]
[1763614633987,0.71,144.49,144.45,50.2]
[1763614634187,0.71,144.49,144.45,57.12270761]
[1763614634425,0.71,144.49,144.45,59.69839199]
[1763614635498,10.20670879,144.49,144.45,57.12270761]
[1763614636314,7.63102441,144.49,144.45,57.12270761]
[1763614637084,17.30057025,144.51,144.48,50.0]
[1763614637085,9.49565522,144.51,144.48,50.0]
[1763614637500,0.71,144.5,144.48,50.0]
[1763614637902,3.28568438,144.5,144.48,50.0]
[1763614638612,0.71,144.5,144.46,61.1578513]
[1763614638784,3.28568438,144.5,144.46,58.58216692]
[1763614639186,10.2062759,144.5,144.46,58.58216692]
[1763614639409,0.71,144.49,144.46,50.0]
[1763614640097,3.28568438,144.49,144.47,5.09778822]
[1763614640309,3.28568438,144.49,144.48,5.09778822]
[1763614640611,2.57568438,144.49,144.48,5.09778822]
[1763614641210,4.94568438,144.49,144.48,5.09778822]
[1763614641410,11.86657855,144.49,144.48,5.09778822]
[1763614644305,9.29089417,144.49,144.48,5.09778822]
[1763614644505,11.86657855,144.49,144.48,5.09778822]
[1763614646101,11.86657855,144.49,144.46,5.09778822]
[1763614646307,0.71,144.48,144.47,5.09778822]
[1763614647127,0.71,144.48,144.47,11.29778822]
[1763614647315,7.6313732,144.48,144.47,11.29778822]
[1763614647521,10.20705758,144.48,144.47,5.09778822]
[1763614649833,10.20705758,144.48,144.45,0.2]
[1763614650006,2.57568438,144.46,144.45,0.2]
[1763614650206,4.23568438,144.46,144.45,5.2903149]
[1763614650425,4.92568438,144.46,144.45,5.2903149]
[1763614650602,4.92568438,144.46,144.45,0.2]
[1763614651535,11.84801582,144.46,144.45,0.2]
[1763614652110,11.84801582,144.46,144.45,1e-08]
[1763614652820,29.96897582,144.46,144.45,1e-08]
[1763614654533,25.73329144,144.46,144.45,1e-08]
[1763614654712,11.84801582,144.46,144.45,1e-08]
[1763614656836,29.96897582,144.46,144.45,1e-08]
[1763614657012,11.84801582,144.46,144.45,1e-08]
[1763614657840,9.27233144,144.46,144.45,1e-08]
[1763614658029,11.84801582,144.46,144.45,1e-08]
[1763614660844,10.18801582,144.46,144.45,1e-08]
[1763614661051,11.84801582,144.46,144.45,1e-08]
[1763614664132,10.18801582,144.46,144.45,1e-08]
[1763614664332,9.49772207,144.47,144.45,1e-08]
[1763614664541,1.66,144.46,144.45,1e-08]
[1763614665455,8.58233144,144.46,144.45,1e-08]
[1763614666359,11.15801582,144.46,144.45,1e-08]
[1763614667462,1.66,144.46,144.45,1e-08]
[1763614667644,4.23568438,144.46,144.45,1e-08]
[1763614667850,11.84801582,144.46,144.45,1e-08]
[1763614668041,11.15801582,144.46,144.45,1e-08]
[1763614668549,11.84801582,144.46,144.45,1e-08]
[1763614669464,0.69,144.49,144.45,1e-08]
[1763614669641,4.23568438,144.48,144.45,1e-08]
[1763614670147,4.93568438,144.48,144.45,1e-08]
[1763614670549,11.85729744,144.48,144.45,1e-08]
[1763614670753,2.57568438,144.46,144.45,1e-08]
[1763614671259,3.27568438,144.46,144.45,1e-08]
[1763614672039,0.7,144.46,144.45,1e-08]
[1763614672347,3.27568438,144.46,144.45,1e-08]
[1763614672651,11.85801582,144.46,144.45,1e-08]
[1763614673054,0.7,144.46,144.45,1e-08]
[1763614673247,3.27568438,144.46,144.45,1e-08]
[1763614674664,7.62233144,144.46,144.45,1e-08]
[1763614674961,10.19801582,144.46,144.45,1e-08]
[1763614678547,18.00004615,144.51,144.45,52.57568439]
[1763614678749,1.66,144.5,144.46,2.57568438]
[1763614678956,4.23568438,144.51,144.46,2.57568438]
[1763614679142,1.66,144.51,144.46,2.57568438]
[1763614679344,2.36,144.51,144.46,2.57568438]
[1763614679573,2.57568438,144.5,144.46,2.57568438]
[1763614679944,9.49650029,144.5,144.46,2.57568438]
[1763614680249,6.91997545,144.51,144.47,52.57568438]
[1763614680449,8.57956966,144.52,144.48,2.57568438]
[1763614680666,9.27956966,144.52,144.48,2.57568438]
[1763614680860,11.85525404,144.52,144.47,52.57568438]
[1763614681046,9.27956966,144.52,144.47,52.57568438]
[1763614681241,1.66,144.52,144.49,2.57568438]
[1763614682055,1.66,144.52,144.48,2.57568438]
[1763614682056,7.61960321,144.52,144.48,2.57568438]
[1763614682257,0.1,144.61,144.48,2.57568438]
[1763614682258,0.7,144.54,144.51,2.57568438]
[1763614682457,0.7,144.59,144.53,2.57568438]
[1763614682666,4.93568438,144.59,144.54,50.0]
[1763614682866,4.93568438,144.59,144.51,51.66]
[1763614682867,2.36,144.59,144.53,20.76627556]
[1763614683049,0.7,144.58,144.53,20.76627556]
[1763614683363,4.93568438,144.59,144.55,50.0]
[1763614683672,0.7,144.58,144.53,50.0]
[1763614683972,0.7,144.58,144.54,2.57568438]
[1763614684157,10.19231797,144.58,144.53,52.57568438]
[1763614684359,2.57568438,144.57,144.53,50.0]
[1763614684667,3.27568438,144.57,144.52,9.4913137]
[1763614684851,4.02740137,144.54,144.49,51.66]
[1763614685045,4.02740137,144.54,144.49,55.68740137]
[1763614685373,4.72740137,144.54,144.49,55.68740137]
[1763614685555,4.72740137,144.54,144.49,51.66]
[1763614685760,4.72740137,144.54,144.49,55.68740137]
[1763614686076,7.61926762,144.53,144.49,55.68740137]
[1763614686556,11.64666899,144.53,144.5,6.2]
[1763614686880,0.7,144.52,144.47,4.02740137]
[1763614687050,4.72740137,144.52,144.47,4.02740137]
[1763614687253,7.61802144,144.55,144.51,50.0]
[1763614687460,6.91763902,144.56,144.52,4.02740137]
[1763614687779,7.617058,144.58,144.53,54.02740137]
[1763614687947,4.02740137,144.57,144.53,50.0]
[1763614688154,0.8,144.61,144.55,50.0]
[1763614688390,13.40290337,144.61,144.56,4.02740137]
[1763614688564,4.72740137,144.6,144.55,55.68740137]
[1763614688751,0.7,144.6,144.55,51.66]
[1763614688960,8.675502,144.61,144.58,4.02740137]
[1763614689268,1.76,144.61,144.58,4.02740137]
[1763614689468,8.67517701,144.61,144.58,4.02740137]
[1763614689659,7.01517701,144.61,144.57,50.0]
[1763614689859,7.01517701,144.61,144.57,54.02740137]
[1763614690257,0.1,144.61,144.55,68.9458478]
[1763614690563,4.02740137,144.59,144.55,50.0]
[1763614691079,4.02740137,144.6,144.55,54.02740137]
[1763614691276,4.72740137,144.59,144.55,50.0]
[1763614691477,4.02740137,144.6,144.57,50.0]
[1763614691853,0.7,144.6,144.57,50.0]
[1763614692082,4.02740137,144.58,144.56,3.2]
[1763614692263,10.94428279,144.58,144.56,3.2]
[1763614692580,6.91688142,144.58,144.56,3.2]
[1763614693185,4.72740137,144.57,144.56,3.2]
[1763614693384,4.02740137,144.57,144.53,54.02740137]
[1763614693557,10.94428279,144.58,144.53,54.02740137]
[1763614693759,0.1,144.61,144.53,76.01854983]
[1763614694093,0.1,144.61,144.59,4.02740137]
[1763614695273,0.1,144.61,144.6,54.02740137]
[1763614696285,0.1,144.61,144.6,50.0]
[1763614696485,0.1,144.61,144.6,53.2]
[1763614698689,0.1,144.61,144.6,125.73401995]
[1763614698898,0.1,144.61,144.6,121.70661858]
[1763614699264,0.1,144.61,144.6,59.02956294]
[1763614699679,0.1,144.61,144.6,62.74519226]
[1763614699983,0.1,144.61,144.58,62.60394561]
[1763614700186,0.1,144.61,144.58,55.68740137]
[1763614700387,0.66,144.6,144.58,50.0]
[1763614700589,0.66,144.6,144.55,18.12096]
[1763614700590,4.68740137,144.6,144.56,54.02740137]
[1763614700766,4.68740137,144.6,144.56,50.0]
[1763614700967,0.66,144.59,144.56,54.02740137]
[1763614701169,0.66,144.6,144.56,54.02740137]
[1763614701992,6.91610761,144.59,144.56,54.02740137]
[1763614702161,17.38787774,144.61,144.58,50.0]
[1763614702162,0.1,144.61,144.58,50.0]
[1763614702366,0.1,144.61,144.58,54.02740137]
[1763614702562,0.1,144.61,144.59,4.02740137]
[1763614703094,0.1,144.61,144.6,4.02740137]
[1763614703466,0.1,144.61,144.59,4.02740137]
[1763614703692,0.1,144.61,144.6,4.16956294]
[1763614703885,0.1,144.61,144.6,104.16956294]
[1763614704198,0.1,144.61,144.6,107.05779089]
[1763614704384,0.1,144.61,144.6,111.08519226]
[1763614704801,0.1,144.61,144.6,120.87401995]
[1763614704976,0.1,144.61,144.6,125.59298425]
[1763614705171,0.1,144.61,144.6,117.53818151]
[1763614705481,0.1,144.61,144.6,121.56558288]
[1763614706406,0.76,144.61,144.6,50.0]
[1763614706573,0.1,144.61,144.6,50.0]
[1763614706775,0.1,144.61,144.6,51.6]
[1763614709078,0.1,144.61,144.6,62.41274193]
[1763614709392,0.1,144.61,144.6,51.74216157]
[1763614709582,0.1,144.61,144.6,62.41274193]
[1763614710269,0.1,144.61,144.6,51.74216157]
[1763614710796,0.1,144.61,144.6,53.26]